bitfinex-derivatives/quotes_ETHF0:USTF0_20241024
["timestamp","ask_amount","ask_price","bid_price","bid_amount"]
[1729761178891,2.9064,2524.5,2524.2,2.4780052]
[1729761179091,0.39647,2524.4,2524.2,2.8745052]
[1729761179284,0.39648,2524.3,2524.2,2.4780052]
[1729761180093,2.9064,2524.5,2524.2,2.4780052]
[1729761180393,0.39648,2524.4,2524.2,2.8745052]
[1729761181192,0.39647,2524.4,2524.2,2.8744952]
[1729761181789,0.39648,2524.3,2524.2,2.4780052]
[1729761181995,0.3965,2524.2,2524.1,1.294]
[1729761182297,3.89754,2524.5,2524.0,2.4780052]
[1729761182492,0.39651,2524.1,2524.0,2.4780052]
[1729761182693,0.39649,2524.3,2524.1,0.39651]
[1729761182899,2.9064,2524.5,2524.0,2.4780052]
[1729761183086,0.39648,2524.3,2524.1,0.3965]
[1729761183901,0.39647,2524.4,2524.2,0.39649]
[1729761184200,2.9064,2524.5,2524.2,2.4780052]
[1729761184395,3.30286,2524.5,2524.3,0.39648]
[1729761184596,0.39647,2524.4,2524.2,2.8744852]
[1729761184994,0.39643,2524.7,2524.5,0.39644]
[1729761185304,0.39642,2524.7,2524.5,0.39644]
[1729761185899,4.2837,2525.1,2524.5,4.6071]
[1729761186101,0.39639,2524.9,2524.8,2.4780052]
[1729761187199,3.2078,2525.2,2524.8,2.8744052]
[1729761187497,0.39637,2525.0,2524.8,2.8744052]
[1729761187698,0.39638,2525.0,2524.8,2.8743952]
[1729761188101,0.39637,2525.1,2524.9,0.39639]
[1729761188304,0.39637,2525.0,2524.8,2.8743952]
[1729761188503,0.39636,2525.1,2524.9,0.39638]
[1729761189097,0.39638,2525.0,2524.8,2.8743952]
[1729761189501,3.2078,2525.2,2524.8,2.4780052]
[1729761189702,0.39638,2525.0,2524.8,2.8743952]
[1729761190204,0.39637,2525.1,2524.9,0.39638]
[1729761190403,3.2078,2525.2,2524.8,2.4780052]
[1729761190703,0.39638,2525.0,2524.8,2.8743952]
[1729761191401,0.39638,2525.0,2524.8,2.8744052]
[1729761191609,3.2078,2525.2,2524.8,2.4780052]
[1729761191905,0.39637,2525.0,2524.8,2.4780052]
[1729761192206,0.39637,2525.0,2524.8,2.8744052]
[1729761192907,3.2078,2525.2,2524.8,2.4780052]
[1729761193207,0.39639,2524.9,2524.8,2.4780052]
[1729761194803,0.39639,2525.0,2524.8,2.8744052]
[1729761195001,3.2078,2525.2,2524.8,2.4780052]
[1729761195201,0.39639,2524.9,2524.8,2.4780052]
[1729761195598,0.9909,2525.1,2524.5,7.0851052]
[1729761195796,3.2078,2525.2,2524.3,2.4780052]
[1729761195797,0.39647,2524.4,2524.3,2.4780052]
[1729761197002,0.39644,2524.6,2524.4,0.39646]
[1729761197205,4.1249,2524.7,2524.5,0.39644]
[1729761197206,4.52132,2524.7,2524.5,0.39644]
[1729761197799,0.39639,2524.9,2524.5,2.4780052]
[1729761197998,0.39639,2524.9,2524.7,0.39641]
[1729761198703,2.7843,2525.0,2524.5,7.0452052]
[1729761198909,0.39636,2525.1,2524.9,0.39637]
[1729761199209,0.39636,2525.1,2524.9,0.39638]
[1729761202910,3.18061,2525.4,2525.2,0.39633]
[1729761203106,3.18061,2525.4,2525.2,2.8743352]
[1729761203310,2.7843,2525.4,2525.2,2.8743352]
[1729761203611,1.4781,2525.5,2525.2,2.8743352]
[1729761203612,0.39629,2525.5,2525.2,2.8743352]
[1729761203810,0.39629,2525.5,2525.3,0.39632]
[1729761204116,2.8712,2525.7,2525.2,2.4780052]
[1729761204307,0.39632,2525.3,2525.2,2.4780052]
[1729761204616,4.1985,2525.6,2525.0,5.2320052]
[1729761204819,0.39635,2525.2,2525.0,5.6283652]
[1729761205012,0.39635,2525.2,2525.0,5.2320052]
[1729761205313,4.1985,2525.6,2525.0,5.2320052]
[1729761205513,0.39633,2525.3,2525.0,5.6283652]
[1729761206010,0.39633,2525.3,2525.1,0.39635]
[1729761207509,3.2078,2525.6,2525.2,2.4780052]
[1729761208207,3.2078,2525.6,2525.0,2.754]
[1729761208208,3.2078,2525.6,2525.0,3.8622052]
[1729761208404,3.2078,2525.3,2524.3,4.24495873]
[1729761208619,0.39645,2524.5,2524.4,2.4780052]
[1729761208914,0.39647,2524.4,2524.3,3.2078]
[1729761209321,0.39647,2524.4,2524.3,5.6858052]
[1729761210206,2.8658,2524.7,2524.3,5.6858052]
[1729761210406,0.39647,2524.4,2524.3,5.6858052]
[1729761210801,4.2627,2524.7,2524.3,6.0822752]
[1729761210802,0.39644,2524.6,2524.3,6.0822752]
[1729761211211,0.39641,2524.8,2524.6,0.39643]
[1729761211515,3.6042,2524.9,2524.6,0.39643]
[1729761211708,0.3964,2524.8,2524.6,0.39643]
[1729761211908,0.39642,2524.7,2524.5,2.8744452]
[1729761212219,0.39641,2524.8,2524.6,0.39643]
[1729761212714,3.2078,2524.9,2524.5,2.8744552]
[1729761213025,0.39641,2524.8,2524.5,2.4780052]
[1729761213315,0.39641,2524.8,2524.6,0.39643]
[1729761214214,3.2078,2524.9,2524.5,2.4780052]
[1729761214416,3.2078,2524.9,2524.6,0.39643]
[1729761214818,3.6042,2524.9,2524.6,0.39643]
[1729761215016,0.39641,2524.8,2524.6,0.39643]
[1729761215515,3.6042,2524.9,2524.6,0.39643]
[1729761216112,0.39641,2524.8,2524.6,0.39643]
[1729761216716,0.39641,2524.8,2524.5,2.4780052]
[1729761216921,0.39641,2524.8,2524.6,0.39643]
[1729761217119,3.6042,2524.9,2524.7,0.39641]
[1729761217621,2.746,2525.0,2524.8,0.3964]
[1729761217622,3.14238,2525.0,2524.8,0.3964]
[1729761217812,3.2078,2525.2,2524.8,2.4780052]
[1729761218020,3.2078,2525.2,2525.1,2.4780052]
[1729761218419,3.2078,2525.2,2525.1,2.8743652]
[1729761219115,3.2574,2525.5,2525.3,0.39632]
[1729761219426,2.8611,2525.5,2525.4,0.39631]
[1729761219717,2.8611,2525.5,2525.2,1.4741]
[1729761219915,2.8611,2525.5,2525.1,2.4780052]
[1729761220412,0.39633,2525.3,2525.1,2.4780052]
[1729761220614,0.39633,2525.3,2525.1,2.8743552]
[1729761221018,0.39633,2525.3,2524.9,7.4511]
[1729761221019,0.39637,2525.0,2524.9,2.4780052]
[1729761221219,1.4115,2525.2,2524.9,2.4780052]
[1729761221519,0.39636,2525.1,2524.9,2.8743852]
[1729761221916,0.39636,2525.1,2524.9,2.4780052]
[1729761222622,0.39637,2525.0,2524.9,2.4780052]
[1729761223221,0.39636,2525.1,2524.9,2.8743952]
[1729761224322,0.39637,2525.0,2524.9,2.4780052]
[1729761224826,1.4115,2525.2,2524.9,2.4780052]
[1729761225126,0.39637,2525.0,2524.9,2.4780052]
[1729761225726,1.4115,2525.2,2524.9,2.8743852]
[1729761225927,0.39636,2525.1,2524.9,2.8743852]
[1729761226628,0.39637,2525.0,2524.9,2.4780052]
[1729761229320,0.99083,2525.3,2524.7,2.4780052]
[1729761229517,0.39639,2524.9,2524.7,2.8744152]
[1729761229722,0.3964,2524.8,2524.7,2.4780052]
[1729761230730,0.99087,2525.2,2524.7,2.4780052]
[1729761230930,0.3964,2524.9,2524.7,2.8744252]
[1729761231526,0.3964,2524.8,2524.7,2.4780052]
[1729761232731,3.84204,2525.0,2524.4,4.2888652]
[1729761232934,0.39644,2524.6,2524.4,4.2888652]
[1729761233823,1.83683,2524.7,2524.4,4.2888652]
[1729761234227,1.83683,2524.7,2524.5,0.39645]
[1729761234522,1.83682,2524.7,2524.5,0.39645]
[1729761234725,1.4404,2524.7,2524.4,3.8924052]
[1729761234927,1.83683,2524.7,2524.4,3.8924052]
[1729761235126,1.83683,2524.7,2524.5,0.39645]
[1729761235531,0.39644,2524.6,2524.4,4.2888652]
[1729761235828,0.39644,2524.6,2524.4,2.8744652]
[1729761236031,1.83683,2524.7,2524.4,2.8744552]
[1729761236728,1.83683,2524.7,2524.5,0.39645]
[1729761236923,3.2078,2524.8,2524.6,2.8744252]
[1729761237123,3.6042,2524.8,2524.7,2.7819]
[1729761238034,3.6042,2524.8,2524.6,2.4780052]
[1729761238035,0.39642,2524.7,2524.6,2.4780052]
[1729761238234,3.60421,2524.8,2524.6,2.8744352]
[1729761239832,3.60421,2524.8,2524.6,2.4780052]
[1729761240129,3.60421,2524.8,2524.6,2.8744352]
[1729761240633,3.2078,2524.8,2524.6,2.4780052]
[1729761240833,3.60421,2524.8,2524.6,2.8744352]
[1729761241132,3.2078,2524.8,2524.6,2.4780052]
[1729761241438,1.74922,2524.7,2524.6,2.4780052]
[1729761241630,1.3528,2524.7,2524.6,2.8744352]
[1729761242333,1.3528,2524.7,2524.6,2.4780052]
[1729761242728,1.3528,2524.7,2524.6,2.8744352]
[1729761243033,2.812,2525.0,2524.6,5.6858052]
[1729761243227,3.20838,2525.0,2524.8,0.3964]
[1729761243735,3.20837,2525.0,2524.8,0.3964]
[1729761244029,3.2078,2525.1,2524.8,0.3964]
[1729761244226,3.2078,2525.1,2524.9,0.39639]
[1729761244227,3.60417,2525.1,2524.9,0.39639]
[1729761244429,0.39638,2525.0,2524.9,2.4780052]
[1729761244625,3.2078,2525.1,2524.9,4.2405852]
[1729761244626,3.60416,2525.1,2524.9,4.2405852]
[1729761244831,3.2078,2525.1,2524.9,3.8442052]
[1729761245129,3.60417,2525.1,2524.9,3.8442052]
[1729761245331,3.60417,2525.1,2524.9,4.2405852]
[1729761245727,0.39637,2525.0,2524.9,3.8442052]
[1729761248538,3.2078,2525.1,2524.7,2.8744152]
[1729761248837,0.39639,2524.9,2524.7,2.8744152]
[1729761249039,0.39639,2524.9,2524.7,2.4780052]
[1729761249237,0.39639,2524.9,2524.7,2.8744152]
[1729761249837,0.39638,2525.0,2524.8,0.3964]
[1729761250433,3.2078,2525.1,2524.7,2.4780052]
[1729761250633,0.3964,2524.9,2524.7,2.8744252]
[1729761251429,3.2078,2525.1,2524.7,2.4780052]
[1729761251637,0.3964,2524.8,2524.6,0.39643]
[1729761252235,0.3964,2524.9,2524.7,0.39642]
[1729761252938,0.3964,2524.9,2524.7,2.8744252]
[1729761253340,0.39637,2525.0,2524.8,0.39639]
[1729761253939,0.39639,2524.9,2524.7,2.8744152]
[1729761254138,0.39637,2525.0,2524.8,0.39639]
[1729761254344,0.39637,2525.0,2524.8,1.75359]
[1729761254641,3.2078,2525.1,2524.8,1.3572]
[1729761254838,0.39638,2525.0,2524.8,1.7536]
[1729761258850,3.2078,2525.1,2524.8,1.3572]
[1729761259045,3.2078,2525.1,2524.7,2.4780052]
[1729761259746,0.3964,2524.8,2524.7,2.4780052]
[1729761261442,3.2078,2525.1,2524.7,2.4780052]
[1729761261646,3.2078,2525.1,2524.9,2.4780052]
[1729761261960,3.27325,2525.2,2525.0,0.39637]
[1729761262654,2.8769,2525.2,2524.9,2.4780052]
[1729761262862,3.27325,2525.2,2525.0,0.39637]
[1729761264466,3.27325,2525.2,2525.0,1.3776]
[1729761264659,0.39636,2525.1,2525.0,1.3776]
[1729761265155,2.8769,2525.2,2524.7,3.5141534]
[1729761265156,7.07557,2525.2,2524.7,3.5141534]
[1729761265456,0.3964,2524.9,2524.7,2.4780052]
[1729761265857,0.3964,2524.9,2524.7,2.8744152]
[1729761266360,0.3964,2524.9,2524.7,2.4780052]
[1729761266865,0.39638,2525.0,2524.7,2.8744152]
[1729761267162,0.39638,2525.0,2524.8,0.3964]
[1729761267953,0.39636,2525.1,2524.9,0.39639]
[1729761268255,0.39636,2525.1,2524.9,2.8743952]
[1729761268763,0.39636,2525.1,2524.9,2.4780052]
[1729761268963,0.39637,2525.0,2524.9,2.4780052]
[1729761269560,0.39642,2524.7,2524.6,1.0361482]
[1729761269766,0.39642,2524.7,2524.5,1.4325982]
[1729761269964,0.99094,2525.0,2524.4,7.1184034]
[1729761270168,0.99094,2525.0,2524.4,6.0822552]
[1729761270362,0.39644,2524.6,2524.4,6.0822552]
[1729761270760,0.39645,2524.5,2524.4,5.6858052]
[1729761272265,0.39645,2524.5,2524.4,3.2078]
[1729761274173,3.9616,2524.5,2524.1,3.2078]
[1729761274365,3.9616,2524.5,2523.8,2.4780052]
[1729761274366,3.2078,2524.2,2523.8,2.4780052]
[1729761274566,0.39654,2523.9,2523.8,2.4780052]
[1729761276562,0.39653,2524.0,2523.8,2.4780052]
[1729761276763,4.242,2524.1,2523.8,2.8745552]
[1729761276764,1.74262,2524.1,2523.8,2.8745552]
[1729761276963,1.74262,2524.1,2524.0,2.4780052]
[1729761278576,1.3461,2524.1,2524.0,2.4780052]
[1729761279162,1.74261,2524.1,2524.0,2.4780052]
[1729761279867,0.39653,2524.0,2523.8,6.0823652]
[1729761280273,1.74262,2524.1,2523.9,0.39654]
[1729761280877,1.3461,2524.1,2523.8,2.4780052]
[1729761281076,1.74261,2524.1,2524.0,2.4780052]
[1729761285278,1.3461,2524.1,2523.8,2.4780052]
[1729761285475,0.39654,2524.0,2523.8,2.8745552]
[1729761285679,0.39653,2524.0,2523.8,2.8745552]
[1729761286074,1.74262,2524.1,2523.9,0.39653]
[1729761286373,1.74262,2524.1,2523.9,0.39654]
[1729761286780,1.3461,2524.1,2523.8,5.6858052]
[1729761286981,1.74262,2524.1,2523.9,0.39654]
[1729761287175,1.74262,2524.1,2523.8,2.4780052]
[1729761287375,1.74262,2524.1,2523.8,2.8745552]
[1729761287676,1.74262,2524.1,2523.9,0.39654]
[1729761287882,1.74262,2524.1,2524.0,1.4094]
[1729761290078,0.39652,2524.1,2524.0,1.4094]
[1729761290279,0.39652,2524.1,2524.0,2.8417]
[1729761292276,7.3463,2524.4,2524.0,2.8417]
[1729761292481,0.39649,2524.3,2524.1,0.39651]
[1729761293176,0.39647,2524.4,2524.2,0.39649]
[1729761293483,0.39648,2524.3,2524.2,1.3571]
[1729761295888,3.2078,2524.7,2524.2,1.3571]
[1729761296087,0.39643,2524.7,2524.4,0.39646]
[1729761296285,0.39643,2524.7,2524.5,4.2528552]
[1729761296476,0.39643,2524.7,2524.5,3.8564052]
[1729761296676,0.39643,2524.7,2524.5,4.2528552]
[1729761297086,1.4553,2524.8,2524.5,3.8564052]
[1729761297275,1.85171,2524.8,2524.5,4.2528452]
[1729761297482,1.85171,2524.8,2524.6,1.479]
[1729761298088,1.4553,2524.8,2524.6,1.479]
[1729761298487,0.39644,2524.6,2524.4,3.60426]
[1729761298882,0.39648,2524.3,2524.2,1.4546]
[1729761299082,0.39652,2524.1,2523.9,3.9326052]
[1729761299289,4.2085,2524.4,2523.9,4.3291452]
[1729761299484,0.39652,2524.1,2523.9,4.3291452]
[1729761299794,4.2085,2524.4,2524.0,0.39653]
[1729761300088,4.60498,2524.4,2524.1,2.8745052]
[1729761300290,0.39649,2524.3,2524.1,2.8745052]
[1729761300487,4.2085,2524.4,2524.1,2.4780052]
[1729761300685,6.6767452,2525.0,2524.4,0.39646]
[1729761300890,0.39643,2524.7,2524.4,0.39646]
[1729761301197,0.39643,2524.7,2524.2,5.9421]
[1729761301198,0.39646,2524.5,2524.2,5.9421]
[1729761301394,1.3968,2524.8,2524.3,0.39648]
[1729761301688,0.39647,2524.4,2524.2,1.77329]
[1729761302084,0.39649,2524.3,2524.1,2.8745152]
[1729761302282,0.99109,2524.6,2524.1,2.4780052]
[1729761302481,0.3965,2524.2,2524.1,2.4780052]
[1729761302689,0.39649,2524.3,2524.1,2.8745152]
[1729761302884,1.79008,2524.4,2524.2,0.3965]
[1729761303203,4.6014,2524.4,2523.9,3.9326052]
[1729761303494,0.39653,2524.0,2523.9,1.4546]
[1729761303684,1.3968,2524.3,2523.8,4.5698]
[1729761303892,0.39652,2524.1,2523.8,4.96635]
[1729761304288,1.3968,2524.3,2523.8,4.96635]
[1729761304490,0.39653,2524.0,2523.8,4.5698]
[1729761304793,0.39653,2524.0,2523.8,3.2078]
[1729761304988,0.39653,2524.0,2523.8,3.60436]
[1729761305190,1.3533,2523.9,2523.8,3.2078]
[1729761305395,1.74984,2523.9,2523.8,3.2078]
[1729761306894,11.0015052,2523.9,2523.1,1.0361482]
[1729761307096,3.2078,2523.3,2522.7,3.2078]
[1729761307396,0.39675,2522.6,2522.5,2.8235]
[1729761307694,3.2078,2523.0,2522.5,2.8235]
[1729761307695,0.39673,2522.8,2522.5,1.3727]
[1729761307902,3.2078,2523.0,2522.6,2.4780052]
[1729761308096,4.6072,2523.2,2522.9,0.39669]
[1729761308399,4.6072,2523.2,2523.1,2.4780052]
[1729761308801,4.6072,2523.2,2523.1,2.8746752]
[1729761308802,3.2078,2523.2,2523.1,2.8746752]
[1729761308997,3.2078,2523.2,2523.1,2.4780052]
[1729761309191,3.2078,2523.2,2523.1,6.4412052]
[1729761309390,4.6072,2523.5,2523.1,2.4780052]
[1729761309689,3.2078,2523.5,2523.3,0.39663]
[1729761310098,3.2078,2523.5,2523.2,4.2151]
[1729761310391,3.2078,2523.5,2523.4,0.39662]
[1729761310593,3.2078,2523.9,2523.3,2.4780052]
[1729761310787,3.60436,2523.9,2523.5,0.3966]
[1729761310988,3.2078,2523.9,2523.6,2.4780052]
[1729761311198,3.2078,2523.9,2523.4,2.4780052]
[1729761311398,0.39665,2523.3,2522.9,4.2400952]
[1729761311699,1.4001,2523.2,2522.9,5.1816052]
[1729761311902,3.2078,2523.0,2522.7,2.4780052]
[1729761312300,3.2078,2523.0,2522.9,2.8747052]
[1729761312995,3.2078,2523.0,2522.9,2.4780052]
[1729761313190,3.2078,2523.0,2522.7,2.4780052]
[1729761313392,3.60449,2523.0,2522.7,2.8747352]
[1729761313603,3.2078,2523.0,2522.7,2.8747352]
[1729761314496,3.60449,2523.0,2522.7,2.4780052]
[1729761314803,3.2078,2523.0,2522.7,2.4780052]
[1729761314992,0.3967,2522.9,2522.7,2.4780052]
[1729761315395,3.2078,2523.0,2522.7,2.4780052]
[1729761315598,3.60449,2523.0,2522.7,2.8747352]
[1729761316198,0.39671,2522.9,2522.7,2.4780052]
[1729761316698,3.2078,2523.0,2522.7,2.8747352]
[1729761316699,3.60449,2523.0,2522.7,2.8747352]
[1729761316905,3.2078,2523.0,2522.7,2.8747352]
[1729761317097,3.2078,2523.0,2522.7,2.4780052]
[1729761317298,3.2078,2523.0,2522.9,0.3967]
[1729761317502,3.2078,2523.0,2522.9,2.8747052]
[1729761317902,3.2078,2523.0,2522.9,4.2582052]
[1729761318506,3.2078,2523.9,2523.6,0.39658]
[1729761318808,1.4142,2523.9,2523.6,0.39658]
[1729761319106,1.4142,2523.9,2523.4,3.2078]
[1729761319318,0.39657,2523.8,2523.5,1.8409]
[1729761319608,4.622,2523.9,2523.1,2.4780052]
[1729761319807,3.22858,2523.7,2523.3,0.39663]
[1729761320009,2.832,2523.7,2523.3,0.39663]
[1729761320304,2.832,2523.7,2523.1,3.9223052]
[1729761320510,2.832,2523.7,2523.4,0.39661]
[1729761320806,3.22858,2523.7,2523.4,0.39661]
[1729761321007,2.832,2523.7,2523.4,0.39662]
[1729761322808,1.4813,2523.7,2523.3,5.6858052]
[1729761323007,1.4813,2523.7,2523.6,0.39659]
[1729761323203,1.4813,2523.7,2523.6,2.8745952]
[1729761323402,1.4142,2523.9,2523.6,2.8745952]
[1729761324502,1.81074,2523.9,2523.6,2.8745952]
[1729761324911,1.4142,2523.9,2523.4,1.365]
[1729761325109,1.4142,2523.9,2523.2,0.39665]
[1729761325110,0.39661,2523.5,2523.2,0.39665]
[1729761325404,0.3966,2523.6,2523.1,1.4443]
[1729761325606,0.3966,2523.6,2523.3,0.39664]
[1729761325810,1.4005,2523.5,2523.3,0.39664]
[1729761326114,1.79711,2523.5,2523.2,3.60444]
[1729761326306,2.845,2523.4,2523.3,0.39664]
[1729761326507,1.3987,2523.4,2523.3,0.39664]
[1729761327106,1.4463,2523.7,2523.5,0.3966]
[1729761327411,2.7992,2523.9,2523.8,0.39656]
[1729761327709,4.2613,2524.3,2524.1,0.39651]
[1729761327902,4.2613,2524.3,2523.9,1.444]
[1729761328106,3.2078,2524.5,2524.1,2.4780052]
[1729761328307,3.2078,2524.5,2524.3,0.39647]
[1729761328611,3.2078,2524.5,2524.2,1.4241]
[1729761328907,0.39648,2524.3,2524.2,1.4241]
[1729761329212,0.39648,2524.3,2524.0,0.39652]
[1729761329805,1.4163,2524.4,2523.9,3.9220052]
[1729761330011,1.81277,2524.4,2524.1,0.39651]
[1729761330201,1.4163,2524.4,2523.9,3.9220052]
[1729761330407,1.4163,2524.4,2524.1,0.3965]
[1729761330806,1.81277,2524.4,2524.1,0.3965]
[1729761331206,1.4163,2524.4,2524.2,0.39649]
[1729761331712,3.2078,2524.5,2524.4,0.39647]
[1729761332013,3.2078,2524.5,2524.3,1.4567]
[1729761332209,3.2078,2524.5,2524.3,1.85317]
[1729761332407,1.3678,2524.6,2524.4,0.39647]
[1729761334311,0.39642,2524.7,2524.4,0.39647]
[1729761334907,6.1212,2524.8,2524.3,2.9136]
[1729761335108,6.1212,2524.8,2524.3,1.4567]
[1729761335312,0.39643,2524.7,2524.4,0.39646]
[1729761335610,0.39649,2524.3,2524.1,3.2078]
[1729761335805,0.39648,2524.4,2524.1,3.60431]
[1729761336000,1.85964,2524.6,2524.2,2.4780052]
[1729761336208,1.4632,2524.6,2524.2,2.4780052]
[1729761336414,1.4632,2524.6,2524.4,0.39646]
[1729761336615,1.85964,2524.6,2524.3,0.39648]
[1729761336815,1.4632,2524.6,2524.2,2.4780052]
[1729761337009,1.4632,2524.6,2524.3,0.39648]
[1729761337209,1.85963,2524.6,2524.3,0.39648]
[1729761337707,6.1212,2524.8,2524.6,0.39642]
[1729761337914,6.1212,2524.8,2524.7,2.4780052]
[1729761338507,2.9134,2524.8,2524.7,2.4780052]
[1729761338711,1.3617,2525.0,2524.9,0.39639]
[1729761338909,1.75808,2525.0,2524.7,6.0822152]
[1729761339206,1.3617,2525.0,2524.7,6.0822152]
[1729761339411,1.3617,2525.0,2524.7,5.6858052]
[1729761339614,1.3617,2525.0,2524.8,0.39639]
[1729761339811,1.3617,2525.0,2524.8,0.3964]
[1729761340212,3.2078,2525.1,2524.9,2.4780052]
[1729761340520,3.2078,2525.1,2525.0,0.39637]
[1729761342122,3.2078,2525.1,2524.9,3.8204052]
[1729761342418,3.2078,2525.1,2525.0,0.39637]
[1729761342919,3.2078,2525.1,2525.0,4.35637]
[1729761343321,1.4554,2525.2,2525.0,3.96]
[1729761343520,1.4554,2525.2,2525.0,0.39636]
[1729761343823,1.4554,2525.2,2524.9,3.8204052]
[1729761344013,1.4554,2525.2,2525.1,0.39636]
[1729761345430,2.723,2525.6,2525.1,3.2078]
[1729761345619,0.3963,2525.5,2525.3,2.4780052]
[1729761346027,0.3963,2525.5,2525.3,2.8743252]
[1729761346532,3.2078,2525.7,2525.5,0.39629]
[1729761346724,4.6058,2525.7,2525.5,0.39629]
[1729761346925,4.6058,2525.7,2525.4,1.7776]
[1729761347115,0.39628,2525.6,2525.4,1.3813]
[1729761347318,3.2078,2525.7,2525.3,2.4780052]
[1729761347523,3.2078,2525.7,2525.4,0.3963]
[1729761347524,3.60406,2525.7,2525.4,0.3963]
[1729761348629,3.2078,2525.7,2525.4,0.3963]
[1729761348829,3.60406,2525.7,2525.4,0.3963]
[1729761349133,3.2078,2525.7,2525.3,3.8593052]
[1729761349432,4.53448,2525.6,2525.3,4.2556252]
[1729761349937,4.1382,2525.6,2525.3,3.8593052]
[1729761350130,1.3764,2525.6,2525.5,0.39629]
[1729761350328,3.2078,2525.7,2525.5,0.39628]
[1729761350532,3.2078,2525.7,2525.4,0.3963]
[1729761350533,3.60407,2525.7,2525.4,0.3963]
[1729761350834,0.39629,2525.5,2525.3,3.8593052]
[1729761351035,1.79738,2525.6,2525.3,4.2556252]
[1729761351237,1.4011,2525.6,2525.3,3.8593052]
[1729761351634,1.79738,2525.6,2525.3,4.2556252]
[1729761352634,1.4011,2525.6,2525.3,3.8593052]
[1729761352831,1.4011,2525.6,2525.3,2.4780052]
[1729761353032,1.79739,2525.6,2525.3,2.8743252]
[1729761354129,1.4011,2525.6,2525.3,2.8743252]
[1729761354335,1.4011,2525.6,2525.4,0.39631]
[1729761354527,1.79738,2525.6,2525.3,2.8743252]
[1729761355133,1.79738,2525.6,2525.4,0.39631]
[1729761355627,1.79738,2525.6,2525.3,2.8743152]
[1729761356439,1.79738,2525.6,2525.3,4.2146152]
[1729761356735,1.4011,2525.6,2525.4,0.3963]
[1729761357331,1.79738,2525.6,2525.3,4.2146252]
[1729761358233,1.79738,2525.6,2525.3,3.8183052]
[1729761358441,1.4011,2525.6,2525.4,0.39631]
[1729761358641,1.79738,2525.6,2525.4,0.39631]
[1729761358834,1.4011,2525.6,2525.4,0.39631]
[1729761360335,0.3963,2525.5,2525.3,4.2146252]
[1729761360542,1.79738,2525.6,2525.3,3.8183052]
[1729761360837,1.79738,2525.6,2525.3,4.2146152]
[1729761361238,1.79738,2525.6,2525.4,0.39631]
[1729761361437,4.98046,2525.8,2525.5,0.39629]
[1729761361651,4.98046,2525.8,2525.6,2.4780052]
[1729761361842,4.98046,2525.8,2525.6,2.8742752]
[1729761362139,3.2078,2526.5,2525.7,4.94986]
[1729761362340,6.39415,2526.5,2526.4,2.4780052]
[1729761362539,0.39618,2526.3,2526.2,2.4780052]
[1729761363236,46.798,2526.5,2526.2,2.4780052]
[1729761363237,5.998,2526.5,2526.2,2.4780052]
[1729761363638,0.39617,2526.3,2526.2,2.4780052]
[1729761364937,4.35457,2526.3,2526.2,2.4780052]
[1729761365139,3.9584,2526.3,2525.9,2.4780052]
[1729761365346,0.39625,2525.8,2525.7,2.4780052]
[1729761366548,3.69515,2526.0,2525.5,2.4780052]
[1729761366853,0.39628,2525.6,2525.5,2.4780052]
[1729761367935,0.99058,2525.9,2525.5,2.4780052]
[1729761368140,0.39628,2525.6,2525.5,2.4780052]
[1729761370352,0.39628,2525.7,2525.5,2.4780052]
[1729761370550,0.39628,2525.7,2525.6,2.4780052]
[1729761373051,1.4337,2525.8,2525.7,0.39626]
[1729761374952,1.4337,2525.8,2525.6,2.4780052]
[1729761375151,0.39626,2525.7,2525.6,2.4780052]
[1729761377148,1.4337,2525.8,2525.7,0.39626]
[1729761377351,1.82995,2525.8,2525.7,0.39626]
[1729761377549,1.4337,2525.8,2525.7,0.39626]
[1729761380150,5.9124,2526.0,2525.9,0.39623]
[1729761380452,4.5588,2526.0,2525.9,2.4780052]
[1729761380650,4.95501,2526.0,2525.9,2.4780052]
[1729761380846,4.5588,2526.0,2525.7,2.4780052]
[1729761381048,1.83794,2525.9,2525.7,2.8742652]
[1729761381251,1.455,2525.8,2525.7,2.8742652]
[1729761381652,1.85125,2525.8,2525.7,2.4780052]
[1729761381948,1.455,2525.8,2525.7,2.8742652]
[1729761382949,1.4417,2525.9,2525.7,2.4780052]
[1729761383149,4.5588,2526.0,2525.8,0.39625]
[1729761383353,3.2078,2526.0,2525.9,2.8742352]
[1729761383554,3.2078,2526.0,2525.9,2.4780052]
[1729761384053,3.60401,2526.0,2525.9,2.4780052]
[1729761384353,3.2078,2526.0,2525.9,2.4780052]
[1729761384754,3.2078,2526.0,2525.9,2.8742352]
[1729761385160,3.2078,2526.0,2525.9,2.4780052]
[1729761385357,3.2078,2526.0,2525.9,2.8742352]
[1729761386449,3.2078,2526.0,2525.9,6.8334352]
[1729761386662,0.00083814,2526.0,2525.9,12.5192404]
[1729761386856,0.00083814,2526.0,2525.9,13.13864302]
[1729761387054,0.00083814,2526.0,2525.9,13.55107862]
[1729761387249,0.00083814,2526.0,2525.9,11.07307342]
[1729761387450,0.00083814,2526.0,2525.9,13.09208354]
[1729761387647,0.00083814,2526.0,2525.9,11.69247444]
[1729761388260,0.00083814,2526.0,2525.9,10.0412352]
[1729761389558,0.00083814,2526.0,2525.9,10.41288491]
[1729761393165,0.00083814,2526.0,2525.9,6.45368491]
[1729761393355,0.00083814,2526.0,2525.9,10.41288491]
[1729761393664,3.2078,2526.5,2525.9,12.49466011]
[1729761393861,2.7896,2526.6,2526.5,0.39614]
[1729761394063,1.3923,2526.6,2526.4,0.39615]
[1729761394259,3.2078,2526.8,2526.4,2.9236]
[1729761394566,0.39607,2527.0,2526.6,2.8741152]
[1729761394765,0.39607,2527.0,2526.9,2.4780052]
[1729761395167,3.60385,2527.1,2526.9,2.4780052]
[1729761395363,3.2078,2527.1,2526.9,2.4780052]
[1729761395556,3.2078,2527.1,2526.9,2.8740752]
[1729761395763,3.2078,2527.1,2527.0,1.3726]
[1729761395961,5.981,2527.1,2526.9,2.4780052]